fUST/lending_fUST_20241020
["ID","MTS","AMOUNT","RATE_DAILY","PERIOD"]
[340530911,1729419277268,-500.0,0.00027,60]
[340530912,1729419277308,-525.94660219,0.00027,60]
[340530913,1729419277349,-500.0,0.00027,60]
[340530914,1729419277391,-916.09,0.00027,60]
[340530915,1729419277434,-500.0,0.00027,60]
[340530916,1729419277481,-518.17490048,0.00027,60]
[340530917,1729419277525,-500.0,0.00027,60]
[340530918,1729419277568,-655.27,0.00027,60]
[340530919,1729419277611,-500.0,0.00027,60]
[340530920,1729419277656,-500.0,0.00027,60]
[340530921,1729419277701,-500.0,0.00027,60]
[340530922,1729419277744,-500.0,0.00027,60]
[340530923,1729419277785,-538.02082552,0.00027,60]
[340530924,1729419277833,-500.0,0.00027,60]
[340530925,1729419277879,-378.48034505,0.00027,60]
[340530926,1729419277923,-500.0,0.00027,60]
[340530927,1729419277968,-500.0,0.00027,60]
[340530928,1729419278012,-500.0,0.00027,60]
[340530929,1729419278056,-500.0,0.00027,60]
[340530930,1729419278101,-814.82,0.00027,60]
[340530931,1729419278145,-747.67,0.00027,60]
[340530932,1729419278189,-500.0,0.00027,60]
[340530933,1729419278234,-500.0,0.00027,60]
[340530934,1729419278278,-46076.59,0.00027,60]
[340530935,1729419278322,-500.0,0.00027,60]
[340530936,1729419278369,-500.0,0.00027,60]
[340530937,1729419278414,-973.82,0.00027,60]
[340530938,1729419278458,-500.0,0.00027,60]
[340530939,1729419278505,-500.0,0.00027,60]
[340530940,1729419278549,-500.0,0.00027,60]
[340530941,1729419278592,-500.0,0.00027,60]
[340530942,1729419278633,-500.0,0.00027,60]
[340530943,1729419278675,-500.0,0.00027,60]
[340530944,1729419278718,-500.0,0.00027,60]
[340530945,1729419278760,-797.42,0.00027,60]
[340530946,1729419278802,-500.0,0.00027,60]
[340530947,1729419278843,-500.0,0.00027,60]
[340530948,1729419278885,-500.0,0.00027,60]
[340530949,1729419278926,-869.12,0.00027,60]
[340530950,1729419278970,-786.44,0.00027,60]
[340530951,1729419279013,-606.52,0.00027,60]
[340530952,1729419279056,-507.30414023,0.00027,60]
[340530953,1729419279101,-500.0,0.00027,60]
[340530954,1729419279145,-1119.9,0.00027,60]
[340530955,1729419279186,-600.4,0.00027,60]
[340530956,1729419279228,-575.82,0.00027,60]
[340530957,1729419279269,-500.0,0.00027,60]
[340530958,1729419279311,-1073.95,0.00027,60]
[340530959,1729419279353,-513.18767775,0.00027,60]
[340530960,1729419279394,-500.0,0.00027,60]
[340530961,1729419279433,-500.0,0.00027,60]
[340530962,1729419279476,-500.0,0.00027,60]
[340530963,1729419279519,-1271.39,0.00027,60]
[340530964,1729419279562,-500.0,0.00027,60]
[340530965,1729419279605,-574.67,0.00027,60]
[340530966,1729419279646,-500.0,0.00027,60]
[340530967,1729419279686,-500.0,0.00027,60]
[340530968,1729419279727,-903.44,0.00027,60]
[340530969,1729419279774,-510.34906768,0.00027,60]
[340530970,1729419279820,-981.94,0.00027,60]
[340530971,1729419279866,-500.0,0.00027,60]
[340530972,1729419279912,-500.0,0.00027,60]
[340530973,1729419279963,-500.0,0.00027,60]
[340530974,1729419280006,-500.0,0.00027,60]
[340530975,1729419280050,-698.05,0.00027,60]
[340530976,1729419280092,-500.0,0.00027,60]
[340530977,1729419280135,-500.0,0.00027,60]
[340530978,1729419280182,-507.22962179,0.00027,60]
[340530979,1729419280225,-255.65116545,0.00027,60]
[340530980,1729419280284,-500.0,0.00027,60]
[340530981,1729419280330,-500.0,0.00027,60]
[340530982,1729419280375,-500.0,0.00027,60]
[340530983,1729419280419,-769.32,0.00027,60]
[340530984,1729419280470,-1059.29,0.00027,60]
[340530985,1729419280518,-500.0,0.00027,60]
[340530986,1729419280564,-662.26,0.00027,60]
[340530987,1729419280610,-929.83,0.00027,60]
[340530988,1729419280654,-500.0,0.00027,60]
[340530989,1729419280703,-500.0,0.00027,60]
[340530990,1729419280747,-513.42631871,0.00027,60]
[340530991,1729419280793,-500.0,0.00027,60]
[340530992,1729419280838,-500.0,0.00027,60]
[340530993,1729419280881,-635.77,0.00027,60]
[340530994,1729419280924,-1013.68,0.00027,60]
[340530995,1729419280966,-500.87267971,0.00027,60]
[340530996,1729419281010,-1739.44,0.00027,60]
[340530997,1729419281053,-590.08140106,0.00027,60]
[340530998,1729419281098,-500.0,0.00027,60]
[340530999,1729419281146,-1255.57,0.00027,60]
[340531000,1729419281191,-500.0,0.00027,60]
[340531001,1729419281237,-1140.61,0.00027,60]
[340531002,1729419281282,-500.0,0.00027,60]
[340531003,1729419281326,-500.0,0.00027,60]
[340531004,1729419281370,-600.18444175,0.00027,60]
[340531005,1729419281427,-500.0,0.00027,60]
[340531006,1729419281472,-500.0,0.00027,60]
[340531007,1729419281521,-500.0,0.00027,60]
[340531008,1729419281570,-500.0,0.00027,60]
[340531009,1729419281830,-650.82,0.00027,60]
[340531010,1729419281874,-826.88,0.00027,60]
[340531011,1729419281917,-962.81,0.00027,60]
[340531012,1729419281963,-517.37,0.00027,60]
[340531013,1729419282005,-500.0,0.00027,60]
[340531014,1729419282048,-511.43093652,0.00027,60]
[340531015,1729419282091,-500.0,0.00027,60]
[340531016,1729419282135,-500.0,0.00027,60]
[340531017,1729419282177,-500.0,0.00027,60]
[340531018,1729419282221,-500.0,0.00027,60]
[340531019,1729419282270,-1508.26,0.00027,60]
[340531020,1729419282314,-500.0,0.00027,60]
[340531021,1729419282358,-500.0,0.00027,60]
[340531022,1729419282403,-500.0,0.00027,60]
[340531023,1729419282450,-1209.57,0.00027,60]
[340531024,1729419282498,-3134.78,0.00027,30]
[340531025,1729419282543,-500.0,0.00027,60]
[340531026,1729419282587,-731.27,0.00027,60]
[340531027,1729419282632,-500.0,0.00027,60]
[340531028,1729419282679,-903.57,0.00027,60]
[340531029,1729419282725,-560.93146984,0.00027,60]
[340531030,1729419282775,-500.0,0.00027,60]
[340531031,1729419282821,-1721.65,0.00027,60]
[340531032,1729419282867,-1568.74,0.00027,60]
[340531033,1729419282910,-500.0,0.00027,60]
[340531034,1729419282953,-601.42,0.00027,60]
[340531035,1729419282995,-633.59,0.00027,60]
[340531036,1729419283041,-500.0,0.00027,60]
[340531037,1729419283087,-500.0,0.00027,60]
[340531038,1729419283132,-500.0,0.00027,60]
[340531039,1729419283200,-500.0,0.00027,60]
[340531040,1729419283253,-500.0,0.00027,60]
[340531041,1729419283301,-1024.06,0.00027,60]
[340531042,1729419283349,-500.0,0.00027,60]
[340531043,1729419283397,-1763.39,0.00027,60]
[340531044,1729419283444,-500.0,0.00027,60]
[340531045,1729419283491,-486.26954632,0.00027,60]
[340531046,1729419283538,-500.0,0.00027,60]
[340531047,1729419283584,-500.0,0.00027,60]
[340531048,1729419283630,-159.61584503,0.00027,60]
[340531049,1729419283676,-500.0,0.00027,60]
[340531050,1729419283722,-500.0,0.00027,60]
[340531051,1729419283769,-500.0,0.00027,60]
[340531052,1729419283817,-500.0,0.00027,60]
[340531053,1729419283862,-836.45,0.00027,60]
[340531054,1729419283907,-1477.24,0.00027,60]
[340531055,1729419283951,-500.0,0.00027,60]
[340531056,1729419283996,-847.85,0.00027,60]
[340531057,1729419284041,-500.0,0.00027,60]
[340531058,1729419284086,-500.0,0.00027,60]
[340531059,1729419284132,-500.0,0.00027,60]
[340531060,1729419284182,-849.1,0.00027,60]
[340531061,1729419284231,-1171.76,0.00027,60]
[340531062,1729419284281,-500.0,0.00027,60]
[340531063,1729419284329,-1128.3,0.00027,60]
[340531064,1729419284380,-508.75362745,0.00027,60]
[340531065,1729419284428,-871.36,0.00027,60]
[340531066,1729419284476,-735.9,0.00027,60]
[340531067,1729419284523,-500.0,0.00027,60]
[340531068,1729419284570,-2161.73,0.00027,60]
[340531069,1729419284616,-500.0,0.00027,30]
[340531070,1729419284664,-553.56,0.00027,60]
[340531071,1729419284713,-1417.51,0.00027,60]
[340531072,1729419284761,-500.0,0.00027,60]
[340531073,1729419284810,-500.0,0.00027,60]
[340531074,1729419284856,-500.0,0.00027,60]
[340531075,1729419284904,-1238.45,0.00027,60]
[340531076,1729419284965,-500.0,0.00027,60]
[340531077,1729419285023,-500.0,0.00027,60]
[340531078,1729419285073,-1095.4,0.00027,60]
[340531079,1729419285121,-982.24,0.00027,60]
[340531080,1729419285167,-500.0,0.00027,60]
[340531081,1729419285218,-500.0,0.00027,60]
[340531082,1729419285268,-613.58,0.00027,60]
[340531083,1729419285315,-500.0,0.00027,60]
[340531084,1729419285361,-535.98,0.00027,60]
[340531085,1729419285406,-500.0,0.00027,60]
[340531086,1729419285457,-500.0,0.00027,60]
[340531087,1729419285508,-1745.8,0.00027,60]
[340531088,1729419285556,-500.0,0.00027,60]
[340531089,1729419285602,-896.17,0.00027,60]
[340531090,1729419285650,-500.0,0.00027,60]
[340531091,1729419285698,-500.0,0.00027,60]
[340531092,1729419285745,-200.29190869,0.00027,60]
[340531093,1729419285792,-774.83,0.00027,60]
[340531094,1729419285839,-582.74,0.00027,60]
[340531095,1729419285887,-500.0,0.00027,60]
[340531096,1729419285933,-944.95,0.00027,60]
[340531097,1729419285979,-822.38,0.00027,60]
[340531098,1729419286025,-910.1,0.00027,60]
[340531099,1729419286070,-500.0,0.00027,60]
[340531100,1729419286116,-3070.44,0.00027,60]
[340531101,1729419286159,-500.33,0.00027,60]
[340531102,1729419286202,-500.0,0.00027,60]
[340531103,1729419286246,-500.0,0.00027,60]
[340531104,1729419286287,-638.61,0.00027,60]
[340531105,1729419286327,-500.0,0.00027,60]
[340531106,1729419286368,-1471.25,0.00027,60]
[340531107,1729419286409,-530.93,0.00027,60]
[340531108,1729419286451,-500.0,0.00027,60]
[340531109,1729419286495,-1602.18,0.00027,60]
[340531110,1729419286537,-500.0,0.00027,60]
[340531111,1729419286580,-500.0,0.00027,60]
[340531112,1729419286802,-1186.78,0.00027,60]
[340531113,1729419286847,-500.0,0.00027,60]
[340531114,1729419286887,-500.0,0.00027,60]
[340531115,1729419286933,-6145.44,0.00027,60]
[340531116,1729419286974,-500.0,0.00027,60]
[340531117,1729419287016,-500.0,0.00027,60]
[340531118,1729419287060,-500.0,0.00027,60]
[340531119,1729419287103,-1222.9,0.00027,60]
[340531120,1729419287152,-500.0,0.00027,60]
[340531121,1729419287196,-500.0,0.00027,60]
[340531122,1729419287240,-500.0,0.00027,60]
[340531123,1729419287285,-500.0,0.00027,60]
[340531124,1729419287327,-213.63117023,0.00027,60]
[340531125,1729419287367,-500.0,0.00027,60]
[340531126,1729419287409,-308.14885209,0.00027,60]
[340531127,1729419287453,-500.0,0.00027,60]
[340531128,1729419287500,-500.0,0.00027,60]
[340531129,1729419287544,-500.0,0.00027,60]
[340531130,1729419287587,-500.0,0.00027,60]
[340531131,1729419287627,-500.0,0.00027,60]
[340531132,1729419287667,-500.0,0.00027,60]
[340531133,1729419287708,-942.98,0.00027,60]
[340531134,1729419287749,-574.31,0.00027,60]
[340531135,1729419287793,-667.21,0.00027,60]
[340531136,1729419287840,-1036.56,0.00027,30]
[340531137,1729419287886,-500.0,0.00027,60]
[340531138,1729419287930,-500.0,0.00027,60]
[340531139,1729419287975,-723.0,0.00027273,60]
[340531140,1729419288017,-500.0,0.00027273,60]
[340531141,1729419288060,-511.70152847,0.00027273,60]
[340531142,1729419288103,-599.67659712,0.00027273,60]
[340531143,1729419288146,-552.04752926,0.00027273,60]
[340531144,1729419288192,-297.76931084,0.00027273,60]
[340531145,1729419288235,-500.0,0.00027273,30]
[340531146,1729419288279,-500.0,0.00027273,60]
[340531147,1729419288324,-500.0,0.00027273,60]
[340531148,1729419288370,-500.0,0.00027273,60]
[340531149,1729419288414,-500.0,0.00027273,60]
[340531150,1729419288461,-500.0,0.00027273,60]
[340531151,1729419288507,-500.0,0.00027273,60]
[340531152,1729419288552,-500.0,0.00027273,60]
[340531153,1729419288595,-500.0,0.00027273,60]
[340531154,1729419288641,-638.75749396,0.00027273,60]
[340531155,1729419288687,-500.0,0.00027273,60]
[340531156,1729419288734,-500.0,0.00027273,60]
[340531157,1729419288780,-500.0,0.00027273,60]
[340531158,1729419288825,-500.0,0.00027273,60]
[340531159,1729419288869,-500.0,0.00027273,60]
[340531160,1729419288914,-206.25211024,0.00027273,60]
[340531161,1729419288958,-500.0,0.00027273,60]
[340531162,1729419289003,-500.0,0.00027273,60]
[340531163,1729419289046,-500.0,0.00027273,60]
[340531164,1729419289092,-901.38,0.00027273,60]
[340531165,1729419289136,-500.0,0.00027273,60]
[340531166,1729419289183,-500.0,0.00027273,60]
[340531167,1729419289228,-976.18,0.00027273,60]
[340531168,1729419289272,-500.0,0.00027273,60]
[340531169,1729419289318,-500.0,0.00027273,60]
[340531170,1729419289363,-500.0,0.00027273,60]
[340531171,1729419289407,-500.0,0.00027273,60]
[340531172,1729419289451,-500.0,0.00027273,60]
[340531173,1729419289501,-500.0,0.00027273,60]
[340531174,1729419289545,-500.0,0.00027273,60]
[340531175,1729419289593,-984.84,0.00027273,60]
[340531176,1729419289637,-500.0,0.00027273,60]
[340531177,1729419289682,-500.0,0.00027273,60]
[340531178,1729419289725,-500.0,0.00027273,60]
[340531179,1729419289768,-500.0,0.00027273,60]
[340531180,1729419289813,-500.0,0.00027273,60]
[340531181,1729419289858,-500.0,0.00027273,60]
[340531182,1729419289900,-1265.39,0.00027273,60]
[340531183,1729419289941,-500.0,0.00027273,60]
[340531184,1729419289985,-500.0,0.00027273,60]
[340531185,1729419290031,-756.35,0.00027273,60]
[340531186,1729419290073,-200.64287332,0.00027273,60]
[340531187,1729419290118,-500.0,0.00027273,60]
[340531188,1729419290163,-508.58798448,0.00027273,60]
[340531189,1729419290209,-3615.14,0.00027273,60]
[340531190,1729419290254,-500.0,0.00027273,60]
[340531191,1729419290302,-500.0,0.00027273,60]
[340531192,1729419290348,-500.0,0.00027273,60]
[340531193,1729419290393,-500.0,0.00027273,60]
[340531194,1729419290439,-539.01434358,0.00027273,60]
[340531195,1729419290485,-500.0,0.00027273,60]
[340531196,1729419290531,-500.0,0.00027273,60]
[340531197,1729419290575,-906.49,0.00027273,60]
[340531198,1729419290621,-500.0,0.00027273,60]
[340531199,1729419290668,-500.0,0.00027273,60]
[340531200,1729419290714,-826.69,0.00027273,60]
[340531201,1729419290759,-500.0,0.00027273,60]
[340531202,1729419290804,-500.0,0.00027273,60]
[340531203,1729419290851,-500.0,0.00027273,60]
[340531204,1729419290894,-500.0,0.00027273,60]
[340531205,1729419290938,-500.0,0.00027273,60]
[340531206,1729419290983,-433.98486965,0.00027273,60]
[340531207,1729419291027,-500.0,0.00027273,60]
[340531208,1729419291069,-500.0,0.00027273,60]
[340531209,1729419291111,-500.0,0.00027273,60]
[340531210,1729419291156,-500.0,0.00027273,60]
[340531211,1729419291199,-500.0,0.00027273,60]
[340531212,1729419291243,-500.0,0.00027273,60]
[340531213,1729419291286,-838.51,0.00027273,60]
[340531214,1729419291329,-369.1425389,0.00027273,60]
[340531216,1729419291564,-500.0,0.00027273,60]
[340531217,1729419291609,-507.00837077,0.00027273,60]
[340531218,1729419291654,-1250.67,0.00027273,60]
[340531219,1729419291696,-500.0,0.00027273,60]
[340531220,1729419291738,-557.05,0.00027273,60]
[340531221,1729419291779,-500.0,0.00027273,60]
[340531222,1729419291820,-500.0,0.00027273,60]
[340531223,1729419291860,-500.0,0.00027273,60]
[340531224,1729419291900,-500.0,0.00027273,60]
[340531225,1729419291943,-500.0,0.00027273,60]
[340531226,1729419291986,-500.0,0.00027273,60]
[340531227,1729419292029,-553.45857281,0.00027273,60]
[340531228,1729419292072,-740.62,0.00027273,60]
[340531229,1729419292116,-500.0,0.00027273,60]
[340531230,1729419292160,-500.0,0.00027273,60]
[340531231,1729419292200,-653.24,0.00027273,60]
[340531232,1729419292243,-781.83,0.00027273,60]
[340531233,1729419292285,-500.0,0.00027273,60]
[340531234,1729419292330,-500.0,0.00027273,60]
[340531235,1729419292372,-500.0,0.00027273,60]
[340531236,1729419292413,-500.0,0.00027273,60]
[340531237,1729419292455,-503.24263615,0.00027273,60]
[340531238,1729419292500,-500.0,0.00027273,60]
[340531239,1729419292544,-500.0,0.00027273,60]
[340531240,1729419292587,-500.0,0.00027273,60]
[340531241,1729419292627,-567.31,0.00027273,60]
[340531242,1729419292671,-154.98865871,0.00027273,60]
[340531243,1729419292715,-514.12142137,0.00027273,60]
[340531244,1729419292757,-500.0,0.00027273,60]
[340531245,1729419292798,-500.0,0.00027273,60]
[340531246,1729419292841,-500.0,0.00027273,60]
[340531247,1729419292882,-500.0,0.00027273,60]
[340531248,1729419292928,-500.0,0.00027273,60]
[340531249,1729419292973,-500.0,0.00027273,60]
[340531250,1729419293017,-537.25884086,0.00027273,60]
[340531251,1729419293061,-500.0,0.00027273,60]
[340531252,1729419293105,-500.0,0.00027273,60]
[340531253,1729419293156,-1000.0,0.00027273,60]
[340531254,1729419293201,-500.0,0.00027273,60]
[340531255,1729419293250,-500.0,0.00027273,60]
[340531256,1729419293294,-500.0,0.00027273,60]
[340531257,1729419293339,-500.0,0.00027273,60]
[340531258,1729419293381,-642.87,0.00027273,60]
[340531259,1729419293423,-644.73,0.00027273,60]
[340531260,1729419293470,-500.0,0.00027273,60]
[340531261,1729419293515,-212.65847657,0.00027273,60]
[340531262,1729419293562,-596.83672242,0.00027273,60]
[340531263,1729419293603,-500.0,0.00027273,60]
[340531264,1729419293644,-543.82930402,0.00027273,60]
[340531265,1729419293687,-500.0,0.00027273,60]
[340531266,1729419293732,-500.0,0.00027273,60]
[340531267,1729419293773,-500.0,0.00027273,60]
[340531268,1729419293816,-794.65,0.00027273,60]
[340531269,1729419293857,-500.0,0.00027273,60]
[340531270,1729419293900,-1157.77,0.00027273,60]
[340531271,1729419293943,-575.52,0.00027273,60]
[340531272,1729419293986,-666.47,0.00027273,60]
[340531273,1729419294029,-500.0,0.00027273,60]
[340531274,1729419294072,-724.23,0.00027273,60]
[340531275,1729419294120,-500.0,0.00027273,60]
[340531276,1729419294162,-500.0,0.00027273,60]
[340531277,1729419294206,-500.0,0.00027273,60]
[340531278,1729419294250,-500.0,0.00027273,60]
[340531279,1729419294293,-683.86,0.00027273,60]
[340531280,1729419294337,-500.0,0.00027273,60]
[340531281,1729419294379,-500.0,0.00027273,60]
[340531282,1729419294422,-500.0,0.00027273,60]
[340531283,1729419294465,-500.0,0.00027273,60]
[340531284,1729419294508,-500.0,0.00027273,60]
[340531285,1729419294549,-500.0,0.00027273,60]
[340531286,1729419294592,-977.76,0.00027273,60]
[340531287,1729419294634,-500.0,0.00027273,60]
[340531288,1729419294676,-500.0,0.00027273,60]
[340531289,1729419294721,-500.0,0.00027273,60]
[340531290,1729419294765,-753.91,0.00027273,30]
[340531291,1729419294810,-185.55103564,0.00027273,60]
[340531292,1729419294854,-500.0,0.00027273,60]
[340531293,1729419294900,-500.0,0.00027273,60]
[340531294,1729419294946,-500.0,0.00027273,60]
[340531295,1729419294992,-500.0,0.00027273,60]
[340531296,1729419295038,-1373.45,0.00027273,60]
[340531297,1729419295082,-500.0,0.00027273,60]
[340531298,1729419295128,-500.0,0.00027273,60]
[340531299,1729419295173,-995.37,0.00027273,60]
[340531300,1729419295218,-500.0,0.00027273,60]
[340531301,1729419295263,-976.95,0.00027273,60]
[340531302,1729419295308,-500.0,0.00027273,60]
[340531303,1729419295349,-500.0,0.00027273,60]
[340531304,1729419295392,-540.44063036,0.00027273,60]
[340531305,1729419295438,-1536.79,0.00027273,60]
[340531306,1729419295483,-500.0,0.00027273,60]
[340531307,1729419295526,-500.0,0.00027273,60]
[340531308,1729419295571,-500.0,0.00027273,60]
[340531309,1729419295614,-1834.09,0.00027273,60]
[340531310,1729419295657,-500.0,0.00027273,60]
[340531311,1729419295701,-500.0,0.00027273,60]
[340531312,1729419295744,-500.0,0.00027273,60]
[340531313,1729419295793,-642.12,0.00027273,60]
[340531314,1729419295842,-500.0,0.00027273,60]
[340531315,1729419295891,-500.0,0.00027273,60]
[340531316,1729419295939,-722.3,0.00027273,60]
[340531317,1729419295986,-500.0,0.00027273,60]
[340531318,1729419296033,-545.49,0.00027273,60]
[340531319,1729419296080,-500.0,0.00027273,60]
[340531320,1729419296302,-500.0,0.00027273,60]
[340531321,1729419296348,-500.0,0.00027273,60]
[340531322,1729419296393,-388.39772552,0.00027273,60]
[340531323,1729419296439,-500.0,0.00027273,60]
[340531324,1729419296488,-200.0,0.00027273,60]
[340531325,1729419296535,-500.0,0.00027273,60]
[340531326,1729419296583,-816.19,0.00027273,60]
[340531327,1729419296628,-500.0,0.00027273,60]
[340531328,1729419296675,-500.0,0.00027273,60]
[340531329,1729419296721,-500.0,0.00027273,60]
[340531330,1729419296764,-998.04,0.00027273,60]
[340531331,1729419296808,-715.54,0.00027273,60]
[340531332,1729419296853,-500.0,0.00027273,60]
[340531333,1729419296898,-500.0,0.00027273,60]
[340531334,1729419296942,-500.0,0.00027273,60]
[340531335,1729419296985,-500.0,0.00027273,60]
[340531336,1729419297029,-500.0,0.00027273,60]
[340531337,1729419297071,-653.44,0.00027273,60]
[340531338,1729419297114,-654.0,0.00027273,60]
[340531339,1729419297158,-610.06,0.00027273,60]
[340531340,1729419297201,-500.0,0.00027273,60]
[340531341,1729419297246,-500.0,0.00027273,60]
[340531342,1729419297290,-500.0,0.00027273,60]
[340531343,1729419297333,-500.0,0.00027273,60]
[340531344,1729419297377,-1313.1,0.00027273,60]
[340531345,1729419297420,-500.0,0.00027273,60]
[340531346,1729419297466,-581.78855533,0.00027273,60]
[340531347,1729419297510,-1128.8,0.00027273,60]
[340531348,1729419297552,-500.0,0.00027273,60]
[340531349,1729419297596,-631.17178006,0.00027273,60]
[340531350,1729419297640,-705.62,0.00027273,60]
[340531351,1729419297684,-500.0,0.00027273,60]
[340531352,1729419297727,-500.0,0.00027273,60]
[340531353,1729419297770,-500.0,0.00027273,60]
[340531354,1729419297812,-500.0,0.00027273,60]
[340531355,1729419297854,-1017.0,0.00027273,60]
[340531356,1729419297898,-2422.71,0.00027273,60]
[340531357,1729419297942,-500.0,0.00027273,60]
[340531358,1729419297989,-959.9951659,0.00027273,60]
[340531359,1729419298036,-529.93226852,0.00027273,60]
[340531360,1729419298081,-500.0,0.00027273,60]
[340531361,1729419298399,-793.37,0.00027273,60]
[340531362,1729419298448,-500.0,0.00027273,60]
[340531363,1729419298497,-1077.51,0.00027273,60]
[340531364,1729419298543,-1012.59,0.00027273,60]
[340531365,1729419298588,-500.0,0.00027273,60]
[340531366,1729419298632,-500.0,0.00027273,60]
[340531367,1729419298678,-500.0,0.00027273,60]
[340531368,1729419298723,-605.1,0.00027273,60]
[340531369,1729419298772,-500.0,0.00027273,60]
[340531370,1729419298816,-597.1,0.00027273,60]
[340531371,1729419298856,-971.16,0.00027273,60]
[340531372,1729419298897,-1020.08,0.00027273,60]
[340531373,1729419298941,-916.34,0.00027273,60]
[340531374,1729419298983,-651.69,0.00027273,60]
[340531375,1729419299027,-718.76,0.00027273,60]
[340531376,1729419299070,-500.0,0.00027273,60]
[340531377,1729419299117,-826.26,0.00027273,60]
[340531378,1729419299162,-500.0,0.00027273,60]
[340531379,1729419299209,-520.13165918,0.00027273,60]
[340531380,1729419299253,-507.36930646,0.00027273,60]
[340531381,1729419299299,-695.34,0.00027273,60]
[340531382,1729419299344,-522.44,0.00027273,60]
[340531383,1729419299389,-1103.17,0.00027273,60]
[340531384,1729419299440,-500.0,0.00027273,60]
[340531385,1729419299488,-500.0,0.00027273,60]
[340531386,1729419299535,-500.0,0.00027273,60]
[340531387,1729419299579,-500.0,0.00027273,60]
[340531388,1729419299626,-500.0,0.00027273,60]
[340531389,1729419299671,-500.0,0.00027273,60]
[340531390,1729419299719,-939.24,0.00027273,60]
[340531391,1729419299765,-1009.81,0.00027273,60]
[340531392,1729419299810,-500.0,0.00027273,30]
[340531393,1729419299857,-827.5,0.00027273,60]
[340531394,1729419299904,-1878.37,0.00027273,60]
[340531395,1729419299949,-502.42640944,0.00027273,60]
[340531396,1729419299994,-924.24,0.00027273,60]
[340531397,1729419300041,-1033.03,0.00027273,60]
[340531398,1729419300088,-930.76,0.00027273,60]
[340531399,1729419300137,-500.0,0.00027273,60]
[340531400,1729419300185,-500.0,0.00027273,60]
[340531401,1729419300232,-500.0,0.00027273,60]
[340531402,1729419300280,-500.0,0.00027273,60]
[340531403,1729419300329,-913.38,0.00027273,60]
[340531404,1729419300378,-500.0,0.00027273,60]
[340531405,1729419300426,-500.0,0.00027273,60]
[340531406,1729419300477,-1075.72,0.00027273,60]
[340531407,1729419300527,-500.0,0.00027273,60]
[340531408,1729419300578,-933.71,0.00027273,60]
[340531409,1729419300624,-1942.87,0.00027273,60]
[340531410,1729419300669,-500.0,0.00027273,60]
[340531411,1729419300713,-683.73,0.00027273,60]